Cogmind - Beta 12 *** ADVENTURER MODE // 2023.04.14 @ 08:52:24 Player: SuDmit Result: Destroyed by Y-54 Guardian with Gatling Laser Performance ------------- Evolutions (3) 1500 Regions Visited (10) 2000 Robots Destroyed (145) 725 Value Destroyed (5821) 5821 Prototype IDs (6) 120 Alien Tech Used (0) 0 Bonus (2636) 2636 TOTAL SCORE: 12802 Bonus ------- High Alert Combat Kills 1283 Follower Combat Kills 164 Entered Garrisons 400 Used RIF Installer 1000 Friendly Fire -211 Cogmind --------- Core Integrity 0/700 Matter 18/300 Energy 69/100 System Corruption 3% Temperature Danger (468) Movement Flying (26) Location -7/Garrison Parts ------- > --- POWER (2) -------- (None) > --- PROPULSION (4) --- VTOL Module VTOL Module VTOL Module VTOL Module > --- UTILITY (5) ------ Improved Light Armor Plating Hacking Suite > --- WEAPON (2) ------- Gatling Laser Gatling Laser > --- INVENTORY (5) ---- Light Nuclear Core Gatling Laser Autogun High-powered Shotgun Peak State ------------ > --- POWER ------------ Light Nuclear Core > --- PROPULSION ------- Improved Aluminum Leg Carbon-fiber Leg Gravmag System Gravmag System > --- UTILITY ---------- Improved Signal Interpreter Improved Medium Armor Plating Improved Medium Armor Plating Hacking Suite > --- WEAPON ----------- High-powered Shotgun High-powered Shotgun > --- INVENTORY -------- Light Nuclear Core Aluminum Leg Improved Sensor Array Missile Launcher [Rating: 37] Favorites ----------- Power Light Nuclear Core Engine Heavy Ion Engine Power Core Light Nuclear Core Propulsion Aluminum Leg Treads Light Treads Leg Aluminum Leg Wheel Compact Wheel Hover Unit Combat Airjet Flight Unit Cesium-ion Thruster Utility Small Storage Unit Device Structural Scanner Storage Small Storage Unit Processor Improved Signal Interpreter Hackware Hacking Suite Protection Improved Medium Armor Plating Weapon High-powered Shotgun Energy Gun EM Shotgun Energy Cannon Heavy Particle Cannon Ballistic Gun High-powered Shotgun Ballistic Cannon Assault Cannon Launcher Rocket Launcher Slashing Weapon Ripper Build | -11 -10 -10 -9 -9 -9 -8 -8 -8 -7 -7 ------- Run | Jun Mat Min Mat Min Exi Min Mat Gar Fac Gar Slots Evolved 6 | . . . 2 . . . 2 . 2 . Power 1 | . . . . . . . . . 1 . Propulsion 2 | . . . 2 . . . . . . . Utility 3 | . . . . . . . 2 . 1 . Weapon . | . . . . . . . . . . . Parts Attached 148 | 7 9 10 28 2 1 16 22 26 1 26 Power 14 | 1 1 1 2 . 1 1 1 4 . 2 Engine 8 | 1 1 1 2 . 1 1 . 1 . . Core 6 | . . . . . . . 1 3 . 2 Reactor . | . . . . . . . . . . . Propulsion 49 | 3 1 2 4 1 . 7 7 12 . 12 Treads 2 | . . . 1 . . . . . . 1 Leg 19 | 2 1 . . . . 4 . 10 . 2 Wheel 1 | 1 . . . . . . . . . . Hover 5 | . . 2 1 . . . . 2 . . Flight 22 | . . . 2 1 . 3 7 . . 9 Utility 41 | 1 2 3 11 1 . 3 9 6 1 4 Device 19 | . 2 3 5 1 . . 4 1 1 2 Storage 2 | 1 . . . . . 1 . . . . Processor 4 | . . . . . . . 4 . . . Hackware 1 | . . . . . . . 1 . . . Protection 15 | . . . 6 . . 2 . 5 . 2 Artifact . | . . . . . . . . . . . Weapon 44 | 2 5 4 11 . . 5 5 4 . 8 Energy Gun 16 | 1 4 1 4 . . 1 2 . . 3 Energy Cannon 2 | . . 1 . . . 1 . . . . Ballistic Gun 8 | 1 1 . . . . . 1 3 . 2 Ballistic Cannon 1 | . . . . . . 1 . . . . Launcher 11 | . . 1 5 . . 1 1 1 . 2 Special Weapon . | . . . . . . . . . . . Impact Weapon . | . . . . . . . . . . . Slashing Weapon 6 | . . 1 2 . . 1 1 . . 1 Piercing Weapon . | . . . . . . . . . . . Special Melee Weapon . | . . . . . . . . . . . Unidentified Prototypes 2 | . 1 . 1 . . . . . . . Parts Lost 50 | . . 2 7 . . 6 9 7 . 19 Power 6 | . . 1 . . . 1 2 1 . 1 Propulsion 23 | . . . 3 . . 3 4 5 . 8 Utility 12 | . . . 2 . . . 3 1 . 6 Weapon 9 | . . 1 2 . . 2 . . . 4 Highest Loss Streak 10 | . . 1 3 . . 3 4 3 . 10 To Critical Strikes 2 | . . . . . . 1 . . . 1 Average Slot Usage (%) 86 | . 98 94 85 81 87 77 77 90 90 68 Engine 8 | . 14 14 11 11 10 10 3 2 . . Core 2 | . . . . . . . 3 5 7 5 Leg 14 | . 28 22 . . . 14 . 22 23 10 Hover 8 | . . 5 22 22 22 7 . 5 7 . Flight 5 | . . . 5 4 11 1 28 2 . 14 Device 6 | . 12 14 5 10 11 . 7 3 5 6 Storage 7 | . 14 14 11 11 11 11 1 . . . Processor 3 | . . . . . . . 11 10 7 2 Hackware 2 | . . . . . . . 3 9 7 7 Protection 5 | . . . 5 . . 10 4 11 15 6 Energy Gun 6 | . 27 17 5 . . 1 3 2 . 5 Ballistic Gun 4 | . . . . . . . 1 15 15 4 Launcher 2 | . . . 4 11 11 4 1 . . . Slashing Weapon 5 | . . 4 9 11 11 10 7 . . . Naked Turns . | . . . . . . . . . . . Heaviest Build 30 | 12 17 20 23 23 21 22 15 25 26 30 Greatest Support 48 | 20 20 24 30 24 24 40 20 48 33 33 Greatest Overweight (x) 7 | . . . . . . 4 . 2 . 7 Average Overweight (x) . | . . . . . . . . . . . Largest Inventory Capacity 8 | 8 8 8 8 8 8 8 8 5 5 5 Average Capacity 6 | 7 8 8 8 8 8 8 5 5 5 5 Most Carried 8 | 1 8 8 8 8 8 8 8 5 5 5 Average Carried 6 | . 6 7 7 7 8 7 5 4 4 4 Final Capacity 8 | 8 8 8 8 8 8 8 5 5 5 5 Final Carried 8 | 1 8 8 8 8 8 8 5 5 4 4 Class Distribution -------------------- 54% | Mutant 21% | Hacker-Mutant 15% | Scavenger-Mutant 3% | Hacker-Sprinter Dominant Class ---------------- Mutant | -10/Materials Mutant | -10/Mines Scavenger-Mutant | -9/Materials Mutant | -9/Mines Mutant | -9/Exiles Mutant | -8/Mines Hacker-Sprinter | -8/Materials Hacker-Mutant | -8/Garrison Scavenger-Mutant | -7/Factory Hacker-Mutant | -7/Garrison Resources | -11 -10 -10 -9 -9 -9 -8 -8 -8 -7 -7 ----------- Run | Jun Mat Min Mat Min Exi Min Mat Gar Fac Gar Matter Collected 2480 | 190 310 138 304 10 . 296 182 804 . 246 Remotely . | . . . . . . . . . . . Salvage Created 4313 | . 535 114 1167 . . 553 414 1067 18 445 Parts 274 | . 31 4 93 . . 29 26 59 1 31 Haulers Intercepted 3 | . 1 . 2 . . . . . . . Recyclers Shooed . | . . . . . . . . . . . Parts Field Recycled . | . . . . . . . . . . . Retrieved Matter . | . . . . . . . . . . . Parts Self-Destructed . | . . . . . . . . . . . Prevented . | . . . . . . . . . . . Kills | -11 -10 -10 -9 -9 -9 -8 -8 -8 -7 -7 ------- Run | Jun Mat Min Mat Min Exi Min Mat Gar Fac Gar Combat Hostiles Destroyed 140 | . 9 14 30 . . 19 12 32 1 23 Melee 30 | . . . 17 . . 6 7 . . . Guns 50 | . 7 4 2 . . 1 . 29 1 6 Cannons 4 | . . . . . . 4 . . . . AOE 55 | . 1 10 11 . . 8 5 3 . 17 Classes Destroyed 15 | . 4 1 5 . . 2 . 2 . 1 Worker 4 | . 2 . 2 . . . . . . . Builder 3 | . . . 3 . . . . . . . Hauler 3 | . 1 . 2 . . . . . . . Recycler 1 | . . . 1 . . . . . . . Operator 1 | . . . 1 . . . . . . . Watcher 5 | . 2 . 1 . . . 2 . . . Swarmer 41 | . . . 12 . . 7 4 6 1 11 Cutter 3 | . . . . . . . . . . 3 Grunt 54 | . 9 2 11 . . 10 4 13 . 5 Brawler 3 | . . . . . . 1 . 2 . . Duelist 2 | . . . . . . . . 2 . . Sentry 17 | . . . 7 . . . 3 4 . 3 Hunter 5 | . . . . . . 1 1 2 . 1 Programmer 3 | . . . . . . . . 3 . . Assembled 13 | . . 13 . . . . . . . . Best Kill Streak 13 | . 8 13 13 . . 5 5 4 1 13 Combat Bots Only 13 | . 5 13 8 . . 5 5 4 1 13 Max Kills in Single Turn 8 | . 4 8 3 . . 1 3 2 1 5 Gunslinging 1 | . . . . . . . . 1 . . Exploded 6 | . 1 6 2 . . 1 3 1 . 5 Melee 1 | . . . 1 . . 1 1 . . . Uniques/NPCs Destroyed . | . . . . . . . . . . . Combat | -11 -10 -10 -9 -9 -9 -8 -8 -8 -7 -7 -------- Run | Jun Mat Min Mat Min Exi Min Mat Gar Fac Gar Damage Taken 5898 | . 163 263 1046 23 . 562 756 1183 61 1841 Core 1426 | . 18 18 241 11 . 86 183 169 . 700 Absorbed by Shields 203 | . . . . . . . . 157 . 46 Core Remaining (%) 59 | 100 . 85 . . . 15 . 36 . . Volleys Fired 204 | . 20 8 24 . . 33 6 74 3 36 Largest 2 | . 2 2 2 . . 2 1 2 2 2 Hottest 160 | . 90 105 110 . . 119 36 75 50 160 Shots Fired 344 | . 40 14 28 . . 38 6 148 6 64 Gun 296 | . 40 10 24 . . 17 2 143 6 54 Cannon 11 | . . 1 . . . 10 . . . . Launcher 37 | . . 3 4 . . 11 4 5 . 10 Special . | . . . . . . . . . . . Kinetic 158 | . . . . . . 5 2 119 6 26 Thermal 38 | . . 1 4 . . 5 . . . 28 Explosive 37 | . . 3 4 . . 11 4 5 . 10 Electromagnetic 111 | . 40 10 20 . . 17 . 24 . . Robot Hit Streak 36 | . 18 5 13 . . 10 14 22 2 36 Robot Miss Streak 5 | . 2 1 1 . . 3 3 5 4 5 Penetration Max . | . . . . . . . . . . . Secondary Targets 12 | . 2 . . . . . . 10 . . Max Gunslinging Chain 1 | . 1 . . . . . . 1 . . Shots Hit Robots 334 | . 35 11 62 . . 45 27 107 3 44 Core Hits 278 | . 26 27 44 . . 35 14 82 4 46 Critical Kills . | . . . . . . . . . . . Critical Parts Destroyed 1 | . . . . . . . . 1 . . Critical Strikes 8 | . . . 3 . . 2 2 1 . . Burn 1 | . . . 1 . . . . . . . Destroy 1 | . . . . . . . . 1 . . Corrupt 1 | . . . 1 . . . . . . . Sever 5 | . . . 1 . . 2 2 . . . Melee Attacks 118 | . . . 56 . 5 19 34 . . 4 Impact . | . . . . . . . . . . . Slashing 118 | . . . 56 . 5 19 34 . . 4 Piercing . | . . . . . . . . . . . Sneak Attacks 5 | . . . 4 . . . 1 . . . Combat Hostiles 1 | . . . . . . . 1 . . . Follow-up Attacks . | . . . . . . . . . . . Damage Inflicted 12974 | . 692 775 3010 . . 1784 1830 2485 93 2305 Guns 4524 | . 572 117 262 . . 225 36 2254 93 965 Cannons 180 | . . 27 . . . 153 . . . . Explosions 4822 | . 120 631 987 . . 822 725 231 . 1306 Melee 3446 | . . . 1761 . . 582 1069 . . 34 Ramming 2 | . . . . . . 2 . . . . Kinetic 2638 | . . . . . . 126 36 1959 93 424 Thermal 1213 | . 120 27 236 . . 289 . . . 541 Explosive 4133 | . . 631 680 . . 560 725 231 . 1306 Electromagnetic 1542 | . 572 117 333 . . 225 . 295 . . Impact . | . . . . . . . . . . . Slashing 3446 | . . . 1761 . . 582 1069 . . 34 Piercing . | . . . . . . . . . . . Highest Corruption 3 | . . . . . . . . 1 . 3 Average Corruption 1 | . . . . . . . . 1 . 3 Corruption Purged . | . . . . . . . . . . . Corruption Blocked . | . . . . . . . . . . . Effects 16 | . . . . . . . . 11 . 5 Message Errors 3 | . . . . . . . . 3 . . Matter Fused 8 | . . . . . . . . 4 . 4 Heat Flow Errors 2 | . . . . . . . . 2 . . Energy Discharges 1 | . . . . . . . . 1 . . Data Loss (major) 1 | . . . . . . . . 1 . . Misfires 1 | . . . . . . . . . . 1 Overload Shots . | . . . . . . . . . . . Overflow Damage 419 | . . 1 105 . . 33 166 . . 114 Projectiles 7 | . . . . . . 7 . . . . Explosions 237 | . . 1 3 . . 10 109 . . 114 Melee 175 | . . . 102 . . 16 57 . . . Knockbacks . | . . . . . . . . . . . Impact . | . . . . . . . . . . . Kinetic . | . . . . . . . . . . . Secondary . | . . . . . . . . . . . Self-Inflicted Damage 249 | . . . 50 . . 28 . 60 . 111 Shots 9 | . . . 2 . . 1 . 3 . 3 Rammed 1 | . . . . . . 1 . . . . Targets Rammed 1 | . . . . . . 1 . . . . Kicked . | . . . . . . . . . . . Crushed . | . . . . . . . . . . . Highest Temperature 450 | . 192 86 62 . . 210 15 180 . 450 Average Temperature 66 | . 57 39 27 . . 73 6 51 . 117 Received Heat Transfer 1812 | . 126 26 483 9 . 198 369 319 12 270 Effects 3 | . . . . . . . . . . 3 Energy Bleed 1 | . . . . . . . . . . 1 Short Circuit 1 | . . . . . . . . . . 1 Damage (minor) 1 | . . . . . . . . . . 1 Siege Activations . | . . . . . . . . . . . Robots Corrupted 1 | . 1 . . . . . . . . . Combat Hostiles 1 | . 1 . . . . . . . . . Parts Fried 9 | . 6 . 2 . . 1 . . . . Impact Corruptions . | . . . . . . . . . . . Robots Melted . | . . . . . . . . . . . Combat Hostiles . | . . . . . . . . . . . Parts Melted 2 | . . . . . . . . . . 2 Heat Transferred 2147 | . 150 37 398 . . 337 . . . 1225 Parts Sabotaged . | . . . . . . . . . . . Parts Stolen . | . . . . . . . . . . . Parts Stripped . | . . . . . . . . . . . Power Chain Reactions 9 | . 1 . 5 . . 3 . . . . Missiles Intercepted . | . . . . . . . . . . . Alert | -11 -10 -10 -9 -9 -9 -8 -8 -8 -7 -7 ------- Run | Jun Mat Min Mat Min Exi Min Mat Gar Fac Gar Peak Influence 1756 | . 258 104 654 200 . 366 1067 1756 847 946 Initial 798 | . . 40 9 155 . . 59 421 798 510 Average 502 | . 112 40 317 166 . 210 611 1125 811 722 Maximum Alert Level 5 | . 1 . 2 1 . 1 3 5 3 3 Low Security (%) 35 | 100 72 100 29 86 . 35 15 . . . Level 1 18 | . 27 . 33 13 . 64 7 . . . Level 2 15 | . . . 37 . . . 28 19 . 40 Level 3 17 | . . . . . . . 48 30 100 59 Level 4 8 | . . . . . . . . 31 . . Level 5 5 | . . . . . . . . 19 . . High Security . | . . . . . . . . . . . Max Security . | . . . . . . . . . . . Squads Dispatched 12 | . 1 1 5 . . 1 4 . . . Investigation 6 | . 1 1 2 . . . 2 . . . Extermination . | . . . . . . . . . . . Reinforcement 5 | . . . 2 . . 1 2 . . . Assault 1 | . . . 1 . . . . . . . Garrison . | . . . . . . . . . . . Intercept . | . . . . . . . . . . . Searches Triggered 1 | . . . . . . . 1 . . . Construction Impeded 1 | . . . . . . 1 . . . . Haulers Reinforced . | . . . . . . . . . . . Active Scanning Responses . | . . . . . . . . . . . Cargo Convoy Interrupts . | . . . . . . . . . . . Stealth | -11 -10 -10 -9 -9 -9 -8 -8 -8 -7 -7 --------- Run | Jun Mat Min Mat Min Exi Min Mat Gar Fac Gar Distress Signals 7 | . 2 . 4 . . . 1 . . . Communications Jammed . | . . . . . . . . . . . Distress Signals . | . . . . . . . . . . . Times Spotted 220 | . 13 17 44 2 . 27 46 38 4 29 Peak Tracking Total 14 | . 5 14 6 2 . 4 13 5 3 8 Tactical Retreats 24 | . . . 1 1 . 5 13 2 . 2 Traps | -11 -10 -10 -9 -9 -9 -8 -8 -8 -7 -7 ------- Run | Jun Mat Min Mat Min Exi Min Mat Gar Fac Gar Traps Triggered 13 | . 1 . . . . . . 9 . 3 Indirectly . | . . . . . . . . . . . Trap Hack Attempts . | . . . . . . . . . . . Triggered . | . . . . . . . . . . . Disarmed . | . . . . . . . . . . . Reprogrammed . | . . . . . . . . . . . Reused . | . . . . . . . . . . . Traps Extracted . | . . . . . . . . . . . Installed . | . . . . . . . . . . . Triggered . | . . . . . . . . . . . Machines | -11 -10 -10 -9 -9 -9 -8 -8 -8 -7 -7 ---------- Run | Jun Mat Min Mat Min Exi Min Mat Gar Fac Gar Machines Disabled 15 | . . . 1 . . 1 6 7 . . Max in Single Turn 2 | . . . 1 . . 1 2 2 . . Garrison Relay 5 | . . . . . . . . 5 . . Phase Generator 1 | . . . . . . . . 1 . . Machines Repaired . | . . . . . . . . . . . Machines Sabotaged . | . . . . . . . . . . . Overloaded Fab Kills . | . . . . . . . . . . . Hacking | -11 -10 -10 -9 -9 -9 -8 -8 -8 -7 -7 --------- Run | Jun Mat Min Mat Min Exi Min Mat Gar Fac Gar Machines Accessed 30 | . 5 1 8 . 2 . 10 2 1 1 Terminals 24 | . 5 . 7 . . . 9 2 . 1 Fabricators . | . . . . . . . . . . . Repair Stations 1 | . . . 1 . . . . . . . Recycling Units . | . . . . . . . . . . . Scanalyzers . | . . . . . . . . . . . Garrison Access 2 | . . . . . . . 1 . 1 . Total Hacks 92 | . 12 1 22 . 8 . 43 4 1 1 Successful 64 | . 8 1 17 . 8 . 26 2 1 1 Failed 28 | . 4 . 5 . . . 17 2 . . Catastrophic 2 | . 1 . . . . . 1 . . . Database Lockouts . | . . . . . . . . . . . Manual 65 | . 11 . 19 . . . 33 2 . . Terminals 79 | . 12 . 21 . . . 41 4 . 1 Fabricators . | . . . . . . . . . . . Repair Stations 1 | . . . 1 . . . . . . . Recycling Units . | . . . . . . . . . . . Scanalyzers . | . . . . . . . . . . . Garrison Access 3 | . . . . . . . 2 . 1 . Terminal Hacks 33 | . 3 1 9 . 8 . 9 2 . 1 Record 8 | . . . . . 8 . . . . . Robot Analysis 7 | . 3 . 2 . . . 2 . . . Prototype ID Bank 2 | . . . 2 . . . . . . . Open Door 2 | . . 1 . . . . . 1 . . Level Access Points 1 | . . . 1 . . . . . . . Branch Access Points 1 | . . . 1 . . . . . . . Emergency Access Points 2 | . . . . . . . 1 1 . . Terminal Index 2 | . . . 1 . . . 1 . . . Alert Level 1 | . . . . . . . 1 . . . Unreport Threat 2 | . . . 1 . . . 1 . . . Investigation Status 1 | . . . . . . . 1 . . . Recall Investigation 1 | . . . . . . . 1 . . . Zone Layout 2 | . . . 1 . . . 1 . . . Garrison Registry 1 | . . . . . . . . . . 1 Fabricator Hacks . | . . . . . . . . . . . Repair Station Hacks 1 | . . . 1 . . . . . . . Refit 1 | . . . 1 . . . . . . . Recycling Unit Hacks . | . . . . . . . . . . . Scanalyzer . | . . . . . . . . . . . Garrison Access Hacks 2 | . . . . . . . 1 . 1 . Unlock Access 2 | . . . . . . . 1 . 1 . Unauthorized Hacks 28 | . 5 . 7 . . . 16 . . . Terminals 27 | . 5 . 7 . . . 15 . . . Botnet 19 | . 5 . 6 . . . 8 . . . Detonate 2 | . . . . . . . 2 . . . Disrupt 5 | . . . 1 . . . 4 . . . Operators 1 | . . . . . . . 1 . . . Fabricators . | . . . . . . . . . . . Repair Stations . | . . . . . . . . . . . Recycling Units . | . . . . . . . . . . . Scanalyzers . | . . . . . . . . . . . Garrison Access 1 | . . . . . . . 1 . . . Broadcast 1 | . . . . . . . 1 . . . Data Cores Recovered . | . . . . . . . . . . . Used . | . . . . . . . . . . . Hacking Detections 24 | . 5 . 7 . . . 9 1 1 1 Full Trace Events 6 | . 1 . 2 . . . 2 1 . . Feedback Events . | . . . . . . . . . . . Feedback Blocked . | . . . . . . . . . . . Robot Schematics Acquired . | . . . . . . . . . . . Robots Built . | . . . . . . . . . . . Authchips . | . . . . . . . . . . . Time . | . . . . . . . . . . . Total Robot Build Rating . | . . . . . . . . . . . Part Schematics Acquired . | . . . . . . . . . . . Parts Built . | . . . . . . . . . . . Authchips . | . . . . . . . . . . . Time . | . . . . . . . . . . . Total Part Build Rating . | . . . . . . . . . . . Parts Repaired . | . . . . . . . . . . . Time . | . . . . . . . . . . . Parts Recycled . | . . . . . . . . . . . Recycled Matter . | . . . . . . . . . . . Retrieved Matter . | . . . . . . . . . . . Retrieved Components . | . . . . . . . . . . . Parts Scanalyzed . | . . . . . . . . . . . Part Schematics Acquired . | . . . . . . . . . . . Parts Damaged . | . . . . . . . . . . . Bothacking | -11 -10 -10 -9 -9 -9 -8 -8 -8 -7 -7 ------------ Run | Jun Mat Min Mat Min Exi Min Mat Gar Fac Gar Used RIF Installer 2 | . . . . . . . . 2 . . Program Shield 1 | . . . . . . . . 1 . . Robots Hacked . | . . . . . . . . . . . Non-combat . | . . . . . . . . . . . Combat . | . . . . . . . . . . . Robot Hacks Applied . | . . . . . . . . . . . Relay Couplers Released 23 | . . . . . . . . 23 . . Machine Destruction 20 | . . . . . . . . 20 . . Programmers 3 | . . . . . . . . 3 . . Fabnet Peak Effective % . | . . . . . . . . . . . Robots Rewired 2 | . . . . . 2 . . . . . Allies Hacked 1 | . . . . . . . . 1 . . Hacks Repelled . | . . . . . . . . . . . Allies | -11 -10 -10 -9 -9 -9 -8 -8 -8 -7 -7 -------- Run | Jun Mat Min Mat Min Exi Min Mat Gar Fac Gar Total Allies 7 | . . 3 . . 2 . . 2 . . Largest Group 3 | . . 3 1 . 2 1 . 2 2 . Highest-Rated Group 59 | . . 40 16 . 29 8 . 59 59 . Highest-Rated Ally 39 | . . 16 16 . 21 8 . 39 39 . Total Orders . | . . . . . . . . . . . Ally Attacks 35 | . . 14 . . . . . 9 12 . Total Damage 410 | . . 180 . . . . . 112 118 . Kills 6 | . . 3 . . . . . 2 1 . Allies Corrupted . | . . . . . . . . . . . Allies Melted . | . . . . . . . . . . . Intel | -11 -10 -10 -9 -9 -9 -8 -8 -8 -7 -7 ------- Run | Jun Mat Min Mat Min Exi Min Mat Gar Fac Gar Robot Analysis Total 7 | . 3 . 2 . . . 2 . . . Derelict Logs Recovered 1 | . . . . 1 . . . . . . Drone Launches . | . . . . . . . . . . . Drone Recoveries . | . . . . . . . . . . . Exploration | -11 -10 -10 -9 -9 -9 -8 -8 -8 -7 -7 ------------- Run | Jun Mat Min Mat Min Exi Min Mat Gar Fac Gar Turns Passed 6211 | 90 614 729 830 179 504 862 449 1490 92 372 Spaces Moved 5527 | 68 410 617 663 215 589 651 895 946 68 405 Core 28 | 2 . . . . . 10 . . . 16 Treads . | . . . . . . . . . . . Legs 1984 | 61 410 352 . . . 247 . 765 68 81 Wheels 5 | 5 . . . . . . . . . . Hover 2188 | . . 265 663 215 589 299 . 157 . . Flight 1322 | . . . . . . 95 895 24 . 308 Fastest Speed 26 | 50 120 77 66 77 77 34 26 32 120 26 Average Speed 85 | 116 120 106 83 77 77 102 31 114 120 47 Slowest Speed 335 | 120 120 120 97 77 77 250 34 195 120 335 Overloaded Moves . | . . . . . . . . . . . Propulsion Burnouts . | . . . . . . . . . . . Robots Hopped 21 | . . . . . . 3 16 . . 2 Cave-ins Triggered . | . . . . . . . . . . . Exploration Rate (%) 65 | 5 78 95 76 64 92 91 86 89 3 36 Regions Visited 10 Branch Regions 4 Pre-discovered Areas 3 | . . . . 2 1 . . . . . Known Exits Taken 4 | . . . 1 . . 1 1 . 1 . Unknown Exits Taken 5 | 1 1 1 . 1 1 . . . . . Scrap Searched 3 | . . . . 1 . 2 . . . . Spaces Dug 23 | . . . 11 . 2 . 10 . . . Terrain Destroyed 513 | . 2 14 54 . 2 129 147 108 . 57 Melee 23 | . . . 11 . 2 . 10 . . . Projectile 3 | . . . . . . 3 . . . . AOE 487 | . 2 14 43 . . 126 137 108 . 57 Terrain Rammed . | . . . . . . . . . . . Walls Destroyed . | . . . . . . . . . . . Machines Disabled . | . . . . . . . . . . . Actions | -11 -10 -10 -9 -9 -9 -8 -8 -8 -7 -7 --------- Run | Jun Mat Min Mat Min Exi Min Mat Gar Fac Gar Total 6461 | 76 488 674 827 227 631 774 991 1198 72 503 Wait 297 | . 40 24 36 9 20 43 35 75 . 15 Move 5482 | 67 409 616 662 214 588 644 867 945 68 402 Hop 16 | . . . . . . 3 12 . . 1 Pick Up 39 | 1 8 8 7 1 . 3 5 3 . 3 Fast Attach 62 | 7 2 1 8 1 1 6 8 11 . 17 Attach 28 | . . 2 6 . . 5 7 3 1 4 Detach 10 | . . . 2 . . 3 1 2 . 2 Swap 58 | . 7 7 14 1 . 5 7 12 . 5 Drop 56 | 1 2 8 12 1 1 6 9 9 . 7 Fire 204 | . 20 8 24 . . 33 6 74 3 36 Melee 118 | . . . 56 . 5 19 34 . . 4 Ram 1 | . . . . . . 1 . . . . Kick . | . . . . . . . . . . . Crush . | . . . . . . . . . . . Escape Stasis 71 | . . . . . . . . 64 . 7 Rewire 19 | . . . . . 16 3 . . . . Trap . | . . . . . . . . . . . Miscellaneous . | . . . . . . . . . . . Route ------- -11/Junkyard -10/Materials (discovered 4 exits: *Mat x2 / *Min x2) -10/Mines (discovered 2 exits: *Mat x2) -9/Materials (discovered 5 exits: *Mat x3 / *Min x2) -9/Mines (discovered 2 exits: *Mat / *Exi) -9/Exiles -8/Mines -8/Materials (discovered 4 exits: *Fac x3 / Gar) -8/Garrison (discovered 3 exits: *Fac x3) -7/Factory -7/Garrison (discovered 3 exits: [Sto x3]) History --------- Turn | Location | Event 18 | -11/Junkyard | Discovered new exit (range 15) 91 | -11/Junkyard | Entered Materials 188 | -10/Materials | Discovered new exit (range 7) 314 | -10/Materials | Build established: Mutant 406 | -10/Materials | Discovered new exit (range 7) 510 | -10/Materials | Discovered new exit (range 4) 646 | -10/Materials | Discovered new exit (range 16) 705 | -10/Materials | Entered Mines 708 | -10/Mines | Assisted by bots powering up and referring to "LRC-V3" 749 | -10/Mines | Discovered new exit (range 10) 754 | -10/Mines | Received a Rocket Launcher from a helpful Derelict 999 | -10/Mines | Discovered new exit (range 3) 1006 | -10/Mines | Met a Derelict shopkeep closing up shop 1080 | -10/Mines | Assembled infested the area 1081 | -10/Mines | A weapon hastily lodged in a ceiling crevice suddenly fell to the ground 1085 | -10/Mines | Assisted by a Guerilla fighting off Assembled 1136 | -10/Mines | Destroyed 13 combat bots 1434 | -10/Mines | Entered Materials 1434 | -9/Materials | Accompanied by 1 ally 1434 | -9/Materials | Evolved 2 slots: Propulsion x2 1706 | -9/Materials | Discovered new exit (range 15) 1761 | -9/Materials | Build established: Scavenger-Mutant 1768 | -9/Materials | Destroyed 8 combat bots 1804 | -9/Materials | Discovered new exit (range 18) 1906 | -9/Materials | Discovered new exit (range 8) 1937 | -9/Materials | Core integrity fell below 50% 1984 | -9/Materials | Lost 3 parts (2n1u) 2093 | -9/Materials | Identified exit to Mines 2093 | -9/Materials | Identified exit to Materials 2197 | -9/Materials | Build established: Mutant 2234 | -9/Materials | First assault squad dispatched 2264 | -9/Materials | Entered Mines 2265 | -9/Mines | Learned location of Storage (-7) 2333 | -9/Mines | Discovered exit to Materials (range 11) 2347 | -9/Mines | Learned location of Zion (-7) 2440 | -9/Mines | Deemed a non-threat by the Exiles lab entrance 2440 | -9/Mines | Discovered new exit (range 5) 2443 | -9/Mines | Entered Exiles 2443 | -9/Exiles | Found Exiles lab destroyed 2658 | -9/Exiles | Discovered new exit (range 14) 2947 | -9/Exiles | Entered Mines 2947 | -8/Mines | Accompanied by 2 allies 3157 | -8/Mines | Discovered exit to Materials (range 13) 3393 | -8/Mines | Lost 3 parts (1n2w) 3403 | -8/Mines | Core integrity fell below 20% 3809 | -8/Mines | Entered Materials 3809 | -8/Materials | Evolved 2 slots: Utility x2 4016 | -8/Materials | Discovered new exit (range 6) 4019 | -8/Materials | Lost 4 parts (1p1n2u) 4121 | -8/Materials | Discovered new exit (range 10) 4165 | -8/Materials | Discovered new exit (range 16) 4209 | -8/Materials | Search patrols dispatched 4258 | -8/Materials | Identified exit to Garrison 4258 | -8/Materials | Entered Garrison 4266 | -8/Garrison | Triggered checkpoint 4315 | -8/Garrison | Garrison Relay disabled 4389 | -8/Garrison | Triggered checkpoint 4580 | -8/Garrison | Build established: Hacker-Mutant 4647 | -8/Garrison | Triggered checkpoint 4722 | -8/Garrison | Discovered new exit (range 11) 4777 | -8/Garrison | Installed Relay Interface Framework 4789 | -8/Garrison | Triggered checkpoint 4801 | -8/Garrison | Garrison Relay disabled 4870 | -8/Garrison | Triggered checkpoint 4904 | -8/Garrison | Discovered new exit (range 8) 4960 | -8/Garrison | Triggered checkpoint 4993 | -8/Garrison | Garrison Relay disabled 5044 | -8/Garrison | Triggered checkpoint 5084 | -8/Garrison | Lost 3 parts (1p1n1u) 5111 | -8/Garrison | Garrison Relay disabled 5114 | -8/Garrison | Triggered checkpoint 5208 | -8/Garrison | Triggered checkpoint 5215 | -8/Garrison | Core integrity fell below 50% 5224 | -8/Garrison | Discovered new exit (range 12) 5387 | -8/Garrison | Expanded RIF knowledge: Program Shield 5412 | -8/Garrison | Phase Generator disabled 5438 | -8/Garrison | Rescued a captive Derelict 5439 | -8/Garrison | Rescued a captive Derelict 5466 | -8/Garrison | Garrison Relay disabled 5721 | -8/Garrison | Identified exit to Factory 5748 | -8/Garrison | Entered Factory 5748 | -7/Factory | Accompanied by 2 allies 5748 | -7/Factory | Evolved 2 slots: Power x1, Utility x1 5840 | -7/Factory | Identified exit to Garrison 5840 | -7/Factory | Entered Garrison 5886 | -7/Garrison | Triggered checkpoint 6038 | -7/Garrison | Destroyed 13 combat bots 6040 | -7/Garrison | Lost 5 parts (3n2u) 6058 | -7/Garrison | Core integrity fell below 50% 6065 | -7/Garrison | Triggered checkpoint 6071 | -7/Garrison | Core integrity fell below 20% 6102 | -7/Garrison | Lost 10 parts (4n3u3w) 6174 | -7/Garrison | Triggered checkpoint 6180 | -7/Garrison | Triggered checkpoint 6195 | -7/Garrison | Discovered new exit (range 95) 6195 | -7/Garrison | Discovered new exit (range 15) 6195 | -7/Garrison | Discovered new exit (range 64) 6212 | -7/Garrison | Destroyed by Y-54 Guardian with Gatling Laser Last Messages --------------- 06161_ Dropped Aluminum Leg. 06169_ System corrupted: Matter fused (-8). 06174_ Beams of light sweep through the air. An alarm sounds. 06195_ Connecting with Garrison Terminal... 06195_ EXIT=FOUND >>Download(Registry) Retrieving Garrison registry... Downloaded map data. Downloaded component registry. Downloaded security status. 06198_ System corrupted: Matter fused (-9). 06201_ Reaction Control System destroyed. 06203_ Melted Gatling Laser. 06203_ Flak Gun melted. 06203_ Y-54 Guardian destroyed. 06207_ Acquired Imp. Light Armor Plating. 06209_ Overheating: Lgt. Nuclear Core damaged (-4). 06209_ Lgt. Nuclear Core destroyed. 06211_ Gatling Laser broken. 06211_ Overheating: Short circuit. Map ----- +----------------------------------------------------+ | | | | | | | | | | | | | | | | | ?????????????????????????????????????????????????? | | ?????????????????????????????????????????????????? | | ?????????????????????????????????????????????????? | | ?????????????????????????????????????????????????? | | ?????????????????????????????????????????????????? | | ?????????????????????????????????????????????????? | | ?????????????????????????????????????????????????? | | ?????????????????????????????????????????????????? | | ?????????????????????####????????????????????????? | | ?????????????????????#""#????????????????????????? | | ?????????????????????# T#????????????????????????? | | ?????????????????????#^"#????????????????????????? | | ?????????????????????# ##?###????????????????????? | | ?????????????????????# ####T####?????????????????? | | ?????????????#######?# # " #?????????????????? | | ?????????????#"""""#?# # " #?????????????????? | | ?????????###### ####s#Y # #?????????????????? | | ?????????# %Y@ # #?????????????????? | | ?????????# ########### # # #?????????????????? | | ?????????# #?????????# ## #####?????????????????? | | ?????????# ###?????### #####?######??????????????? | | #####????# ####### " #?????# #??????????????? | | #=[!#????# + + " #?????# < #??????????????? | | # !#????# ### ### " #?????# #??????????????? | | # !#????# ###?# #?### #?????# ###??????????????? | | # #????# #???# #???# #?????# #????????????????? | | ## ##????# #???# #???# #?????# #????????????????? | | #?????# #???# #???# #?????# #????????????????? | | +###?????# #???# #???# #?????# #????????????????? | | #???????# #???# #???# #####?# #????????????????? | | #???????# #???# #???# ##""#?# #????????????????? | | #???????# #???# #???# ##T #?# #????????????????? | | #???????# #???# #???# ##"^#?# #????????????????? | | #???????# #####+##### ### ### #????????????????? | | #???????# ^^ #????????????????? | | #???????# ^^ #????????????????? | | #???????# ####+#### #######+##????????????????? | | #####???# #### #### #?????# #?????????????????? | | #???# + ## #?????# #?????????????????? | | ### #???# ###### ## #?????# #?????????????????? | | #?#+##### #????# ## #?????# #?????????????????? | | ### ## #????# ## #????##+###???????????????? | +----------------------------------------------------+ Best States ------------- Heat Dissipation 34 Energy Generation 18 Energy Capacity 280 Matter Stores 300 Matter Capacity 300 Sight Range 18 Robot Scan Range 15 Terrain Scan Density 10 Armor Coverage 450 Resistance: KI 20 Resistance: TH 20 Resistance: EX 20 Resistance: EM 20 Resistance: I 20 Resistance: S 20 Resistance: P 20 Melee Speed Boost 20 Evasion (%) 72 Melee Accuracy 5 Recoil Reduction 1 Particle Charging 15 Offensive Hacking 20 Item Schematics ----------------- None Robot Schematics ------------------ None Fabricated ------------ Nothing Alien Tech Used ----------------- None Achievements -------------- None Challenges ------------ None Game ------ Seed ThiefGuidedGenerator Manual? 0 Play Time 01:37:39 Cumulative 149.6 hours Start 2023.04.14 @ 07:14:04 End 2023.04.14 @ 08:52:24 Sessions 1 Manual Loads 0 Difficulty Adventurer Special Mode None Game No. 39 Rogue 0 Adventurer 39 Explorer 0 Win Type - Total 1 Types 1/0/0/0/0/0/0/0/0 Lore% 59 Gallery% 66 Achievement% 55 Wizard Run 0 Options --------- ASCII 0 Keyboard 0 Movement Mouse Keybinds 0 Fullscreen 1 Font 14/SmallcapsGlow Map View 72x54 Tactical HUD 1 Map Filters NONE Filters NONE Steam 1 RUN: ac6dd46f-1de3-420a-bc2f-9d73cc040814